[Event "GrandPrix_29.05"]
[Site "Chess.com"]
[Date "2020.05.29"]
[Round "4"]
[White "Anton_Demchenko"]
[Black "kpio91"]
[Result "1/2-1/2"]
[WhiteElo "2612"]
[BlackElo "2743"]
[TimeControl "600+2"]
[EndTime "10:59:58 PDT"]
[Termination "Game drawn by agreement"]

1. e4 {[%clk 0:09:57.5]} 1... c5 {[%clk 0:10:00.7]} 2. Nc3 {[%clk 0:09:57.2]}
2... a6 {[%clk 0:09:51.3]} 3. g3 {[%clk 0:09:57.5]} 3... b5 {[%clk 0:09:50.8]}
4. Bg2 {[%clk 0:09:58.4]} 4... Bb7 {[%clk 0:09:51.2]} 5. Nge2 {[%clk 0:09:55.2]}
5... e6 {[%clk 0:09:47.5]} 6. O-O {[%clk 0:09:49.9]} 6... b4 {[%clk 0:08:53.7]}
7. Nb1 {[%clk 0:09:48.6]} 7... d5 {[%clk 0:08:45.9]} 8. d3 {[%clk 0:09:26.2]}
8... Nf6 {[%clk 0:08:42.2]} 9. e5 {[%clk 0:08:35.2]} 9... Nfd7 {[%clk
0:08:41.5]} 10. f4 {[%clk 0:08:35.5]} 10... Be7 {[%clk 0:08:20]} 11. Nd2 {[%clk
0:08:29.5]} 11... O-O {[%clk 0:08:18.8]} 12. Nf3 {[%clk 0:08:24.4]} 12... Nc6
{[%clk 0:08:11]} 13. g4 {[%clk 0:06:55.6]} 13... a5 {[%clk 0:07:20.8]} 14. Ng3
{[%clk 0:06:43.4]} 14... a4 {[%clk 0:07:16.9]} 15. Bd2 {[%clk 0:06:06.2]} 15...
a3 {[%clk 0:06:54.3]} 16. b3 {[%clk 0:06:06.6]} 16... c4 {[%clk 0:06:55.6]} 17.
d4 {[%clk 0:05:48.8]} 17... cxb3 {[%clk 0:06:28.2]} 18. cxb3 {[%clk 0:05:48.1]}
18... f6 {[%clk 0:05:54.3]} 19. Be3 {[%clk 0:04:54.9]} 19... Ba6 {[%clk
0:04:58.9]} 20. Rf2 {[%clk 0:04:51.4]} 20... fxe5 {[%clk 0:04:52.6]} 21. fxe5
{[%clk 0:04:48.2]} 21... Rc8 {[%clk 0:04:14.4]} 22. g5 {[%clk 0:03:49.1]} 22...
Qe8 {[%clk 0:03:29.3]} 23. Bh3 {[%clk 0:03:33.1]} 23... Nd8 {[%clk 0:03:28.2]}
24. Rc1 {[%clk 0:03:16]} 24... Nb6 {[%clk 0:02:32.9]} 25. Rxc8 {[%clk
0:03:06.1]} 25... Nxc8 {[%clk 0:02:32.7]} 26. Bg4 {[%clk 0:03:04.7]} 26... Na7
{[%clk 0:02:18.2]} 27. h4 {[%clk 0:02:43]} 27... Nb5 {[%clk 0:02:17.1]} 28. h5
{[%clk 0:02:27.9]} 28... Nc3 {[%clk 0:02:16.1]} 29. Qc2 {[%clk 0:02:29.1]} 29...
Qb5 {[%clk 0:01:49.6]} 30. Ne1 {[%clk 0:01:48.2]} 30... Rxf2 {[%clk 0:01:32.1]}
31. Qxf2 {[%clk 0:01:50.1]} 31... Qe8 {[%clk 0:01:15.2]} 32. Qc2 {[%clk
0:01:35.9]} 32... Bf8 {[%clk 0:00:40.8]} 33. g6 {[%clk 0:01:19.4]} 33... h6
{[%clk 0:00:34.6]} 34. Ne2 {[%clk 0:01:01.6]} 34... Bxe2 {[%clk 0:00:21.5]} 35.
Bxe2 {[%clk 0:01:02]} 35... Be7 {[%clk 0:00:19.1]} 36. Nf3 {[%clk 0:00:57.9]}
36... Qf8 {[%clk 0:00:12.7]} 37. Kg2 {[%clk 0:00:08.1]} 37... Nxe2 {[%clk
0:00:11.3]} 38. Qxe2 {[%clk 0:00:08.6]} 38... Qf5 {[%clk 0:00:12.9]} 39. Ne1
{[%clk 0:00:06.7]} 1/2-1/2

[Event "GrandPrix_29.05"]
[Site "Chess.com"]
[Date "2020.05.29"]
[Round "4"]
[White "SoltaniciR"]
[Black "Happy1712Drummer"]
[Result "1-0"]
[WhiteElo "2221"]
[BlackElo "2176"]
[TimeControl "600+2"]
[EndTime "10:59:58 PDT"]
[Termination "SoltaniciR won by checkmate"]

1. e4 {[%clk 0:09:57.9]} 1... c6 {[%clk 0:09:48.9]} 2. c4 {[%clk 0:09:57.5]}
2... d5 {[%clk 0:09:50.8]} 3. exd5 {[%clk 0:09:58.2]} 3... cxd5 {[%clk
0:09:51.7]} 4. cxd5 {[%clk 0:09:58.9]} 4... Nf6 {[%clk 0:09:51.1]} 5. Qa4+
{[%clk 0:09:59.4]} 5... Nbd7 {[%clk 0:09:47.7]} 6. Nc3 {[%clk 0:09:59.7]} 6...
g6 {[%clk 0:09:47.7]} 7. Nf3 {[%clk 0:10:00.5]} 7... Bg7 {[%clk 0:09:47.7]} 8.
Bc4 {[%clk 0:10:02]} 8... O-O {[%clk 0:09:46.6]} 9. d3 {[%clk 0:10:03]} 9... Ne8
{[%clk 0:09:27.3]} 10. O-O {[%clk 0:09:58.4]} 10... Nd6 {[%clk 0:09:25.5]} 11.
Re1 {[%clk 0:09:51]} 11... a6 {[%clk 0:09:06.2]} 12. Qa3 {[%clk 0:09:18]} 12...
Nb6 {[%clk 0:09:04.1]} 13. Qb3 {[%clk 0:08:58.7]} 13... Bg4 {[%clk 0:08:52.6]}
14. Ne5 {[%clk 0:08:48]} 14... Bf5 {[%clk 0:08:42.1]} 15. a4 {[%clk 0:08:47.1]}
15... Rc8 {[%clk 0:08:18.4]} 16. Be3 {[%clk 0:07:11.1]} 16... Nbxc4 {[%clk
0:07:28.7]} 17. dxc4 {[%clk 0:07:08.7]} 17... Bxe5 {[%clk 0:07:23]} 18. Bb6
{[%clk 0:07:09]} 18... Qd7 {[%clk 0:07:14.9]} 19. Rxe5 {[%clk 0:07:03.8]} 19...
Nxc4 {[%clk 0:06:47.6]} 20. Re2 {[%clk 0:07:04.6]} 20... Bd3 {[%clk 0:05:44.1]}
21. Ree1 {[%clk 0:07:04.2]} 21... Rfe8 {[%clk 0:05:28.6]} 22. Rad1 {[%clk
0:07:01.8]} 22... Qf5 {[%clk 0:05:18.7]} 23. Qb4 {[%clk 0:06:16.1]} 23... e5
{[%clk 0:03:39.3]} 24. d6 {[%clk 0:05:53.3]} 24... e4 {[%clk 0:03:29.4]} 25. Bc7
{[%clk 0:01:36.5]} 25... Qe6 {[%clk 0:01:10]} 26. b3 {[%clk 0:01:24.7]} 26... a5
{[%clk 0:01:06.3]} 27. Qc5 {[%clk 0:01:16.7]} 27... Nxd6 {[%clk 0:00:44.1]} 28.
Nd5 {[%clk 0:00:53.9]} 28... Nf5 {[%clk 0:00:28.6]} 29. g3 {[%clk 0:00:40.8]}
29... Kg7 {[%clk 0:00:17.9]} 30. Rxd3 {[%clk 0:00:37.3]} 30... exd3 {[%clk
0:00:09.7]} 31. Rxe6 {[%clk 0:00:37.6]} 31... Rxe6 {[%clk 0:00:10.4]} 32. Qc3+
{[%clk 0:00:36.7]} 32... f6 {[%clk 0:00:10.3]} 33. Qxd3 {[%clk 0:00:36.3]} 33...
Rc6 {[%clk 0:00:08.7]} 34. Bxa5 {[%clk 0:00:28.4]} 34... Rd6 {[%clk 0:00:08.4]}
35. Qb5 {[%clk 0:00:22.8]} 35... Rcc6 {[%clk 0:00:07]} 36. Qxb7+ {[%clk
0:00:22.8]} 36... Kh6 {[%clk 0:00:08.3]} 37. Ne7 {[%clk 0:00:15.2]} 37... Rc1+
{[%clk 0:00:07.9]} 38. Kg2 {[%clk 0:00:15.8]} 38... Nd4 {[%clk 0:00:08.1]} 39.
Bd2+ {[%clk 0:00:15.2]} 39... Kh5 {[%clk 0:00:09.2]} 40. Bxc1 {[%clk 0:00:16.3]}
40... Ne6 {[%clk 0:00:10.5]} 41. Qf3# {[%clk 0:00:15.3]} 1-0

[Event "GrandPrix_29.05"]
[Site "Chess.com"]
[Date "2020.05.29"]
[Round "4"]
[White "francyIM"]
[Black "chessdjw"]
[Result "1-0"]
[WhiteElo "2509"]
[BlackElo "2193"]
[TimeControl "600+2"]
[EndTime "11:00:00 PDT"]
[Termination "francyIM won on time"]

1. d4 {[%clk 0:09:54.1]} 1... Nf6 {[%clk 0:09:59.9]} 2. c4 {[%clk 0:09:50.8]}
2... g6 {[%clk 0:10:00.5]} 3. g3 {[%clk 0:09:50.2]} 3... Bg7 {[%clk 0:09:58.7]}
4. Bg2 {[%clk 0:09:51]} 4... O-O {[%clk 0:09:59.4]} 5. Nc3 {[%clk 0:09:51.6]}
5... Nc6 {[%clk 0:09:59]} 6. e3 {[%clk 0:09:26.8]} 6... e5 {[%clk 0:09:58.5]} 7.
Nge2 {[%clk 0:09:26.3]} 7... exd4 {[%clk 0:09:56.4]} 8. Nxd4 {[%clk 0:09:26.1]}
8... Nxd4 {[%clk 0:08:34.1]} 9. Qxd4 {[%clk 0:09:23.8]} 9... Re8 {[%clk
0:08:33.8]} 10. Qd2 {[%clk 0:09:19.8]} 10... d6 {[%clk 0:08:30.8]} 11. O-O
{[%clk 0:09:17]} 11... Rb8 {[%clk 0:08:26.9]} 12. b3 {[%clk 0:08:55.6]} 12... a6
{[%clk 0:07:50.6]} 13. Bb2 {[%clk 0:08:53.8]} 13... b5 {[%clk 0:07:48.7]} 14.
cxb5 {[%clk 0:08:30]} 14... axb5 {[%clk 0:07:50.6]} 15. Rac1 {[%clk 0:07:37.9]}
15... Be6 {[%clk 0:06:19.2]} 16. Ne2 {[%clk 0:07:31.1]} 16... Bd7 {[%clk
0:05:54.1]} 17. Nf4 {[%clk 0:07:18.2]} 17... b4 {[%clk 0:05:49.9]} 18. Rfd1
{[%clk 0:07:13.2]} 18... Rb6 {[%clk 0:05:28.1]} 19. Bxf6 {[%clk 0:06:52.2]}
19... Bxf6 {[%clk 0:05:27.4]} 20. Nd5 {[%clk 0:06:52.5]} 20... Bc3 {[%clk
0:04:45]} 21. Rxc3 {[%clk 0:06:31.8]} 21... bxc3 {[%clk 0:04:46.9]} 22. Qxc3
{[%clk 0:06:32.5]} 22... Ra6 {[%clk 0:04:21.6]} 23. Nf6+ {[%clk 0:06:18.2]}
23... Kf8 {[%clk 0:04:21.2]} 24. Nxh7+ {[%clk 0:06:18.4]} 24... Kg8 {[%clk
0:04:22.3]} 25. Nf6+ {[%clk 0:06:19.2]} 25... Kf8 {[%clk 0:04:23.6]} 26. Nd5
{[%clk 0:05:29.3]} 26... Re5 {[%clk 0:04:15.4]} 27. Nxc7 {[%clk 0:05:08.5]}
27... Rxa2 {[%clk 0:03:51]} 28. Rxd6 {[%clk 0:04:37]} 28... Qe7 {[%clk
0:03:12.1]} 29. Rxd7 {[%clk 0:03:15]} 29... Qxd7 {[%clk 0:03:12.4]} 30. Qxe5
{[%clk 0:03:10.9]} 30... Qd1+ {[%clk 0:03:12.9]} 31. Bf1 {[%clk 0:03:10.8]}
31... Ra1 {[%clk 0:02:43.9]} 32. Qe8+ {[%clk 0:02:34.2]} 32... Kg7 {[%clk
0:02:43.5]} 33. Qb5 {[%clk 0:02:35.1]} 33... Kh7 {[%clk 0:02:23.1]} 34. Qc4
{[%clk 0:02:31.9]} 34... Rc1 {[%clk 0:01:56.1]} 35. Qxf7+ {[%clk 0:02:31.3]}
35... Kh6 {[%clk 0:01:21.3]} 36. Qf8+ {[%clk 0:02:31.5]} 36... Kh7 {[%clk
0:01:21.3]} 37. Qe7+ {[%clk 0:02:30.7]} 37... Kh8 {[%clk 0:00:28.7]} 38. Qe8+
{[%clk 0:01:57.2]} 38... Kh7 {[%clk 0:00:28.7]} 39. Qe7+ {[%clk 0:01:46.1]}
39... Kh8 {[%clk 0:00:24.7]} 40. Qh4+ {[%clk 0:01:46.1]} 40... Kg8 {[%clk
0:00:25.1]} 41. Qh3 {[%clk 0:01:46.9]} 41... Rxc7 {[%clk 0:00:21]} 42. b4 {[%clk
0:01:47.9]} 42... Rc1 {[%clk 0:00:18.8]} 43. b5 {[%clk 0:01:48.1]} 43... Rb1
{[%clk 0:00:20.1]} 44. Qe6+ {[%clk 0:01:46.8]} 44... Kg7 {[%clk 0:00:20.1]} 45.
Qh3 {[%clk 0:01:43]} 45... Rxb5 {[%clk 0:00:11.4]} 46. Qg2 {[%clk 0:01:43.8]}
46... Rb1 {[%clk 0:00:11.7]} 47. h4 {[%clk 0:01:44]} 47... Ra1 {[%clk
0:00:12.5]} 48. Qh3 {[%clk 0:01:44.3]} 48... Rc1 {[%clk 0:00:12.7]} 49. Qg2
{[%clk 0:01:42.5]} 49... Ra1 {[%clk 0:00:13.6]} 50. e4 {[%clk 0:01:40.4]} 50...
Qe1 {[%clk 0:00:12]} 51. e5 {[%clk 0:01:36.9]} 51... Qxe5 {[%clk 0:00:10.2]} 52.
Qb7+ {[%clk 0:01:36.8]} 52... Kh8 {[%clk 0:00:09.4]} 53. Kg2 {[%clk 0:01:36.8]}
53... Ra2 {[%clk 0:00:05.3]} 54. Qc8+ {[%clk 0:01:32.3]} 54... Kg7 {[%clk
0:00:05]} 55. Qb7+ {[%clk 0:01:32.9]} 55... Kh8 {[%clk 0:00:05.9]} 56. Bc4
{[%clk 0:01:29.6]} 56... Rb2 {[%clk 0:00:02.5]} 57. Qa8+ {[%clk 0:01:26.1]} 1-0

[Event "GrandPrix_29.05"]
[Site "Chess.com"]
[Date "2020.05.29"]
[Round "4"]
[White "PeshkaTheGreat"]
[Black "MAS_1704"]
[Result "0-1"]
[WhiteElo "2207"]
[BlackElo "2179"]
[TimeControl "600+2"]
[EndTime "11:00:00 PDT"]
[Termination "MAS_1704 won by resignation"]

1. e4 {[%clk 0:10:01.9]} 1... g6 {[%clk 0:09:51.3]} 2. d4 {[%clk 0:09:57.7]}
2... Bg7 {[%clk 0:09:51.7]} 3. Nc3 {[%clk 0:09:57.4]} 3... d6 {[%clk 0:09:51.8]}
4. Bg5 {[%clk 0:09:53.2]} 4... c6 {[%clk 0:09:46.1]} 5. f4 {[%clk 0:09:51.2]}
5... Qb6 {[%clk 0:09:42.2]} 6. Qd2 {[%clk 0:09:46.7]} 6... Qxd4 {[%clk
0:09:19.8]} 7. O-O-O {[%clk 0:09:36.6]} 7... Qxd2+ {[%clk 0:09:18.7]} 8. Rxd2
{[%clk 0:09:38.5]} 8... h6 {[%clk 0:08:27.3]} 9. Bh4 {[%clk 0:09:37.9]} 9... Nf6
{[%clk 0:08:25.2]} 10. Nf3 {[%clk 0:09:33.6]} 10... Nh5 {[%clk 0:08:08.3]} 11.
g3 {[%clk 0:09:11]} 11... Bxc3 {[%clk 0:07:49]} 12. bxc3 {[%clk 0:09:10.3]}
12... f6 {[%clk 0:07:49.7]} 13. f5 {[%clk 0:07:18]} 13... gxf5 {[%clk
0:05:47.3]} 14. Bd3 {[%clk 0:06:49.4]} 14... fxe4 {[%clk 0:04:56]} 15. Bxe4
{[%clk 0:06:50]} 15... Kf7 {[%clk 0:04:43.9]} 16. c4 {[%clk 0:06:21.3]} 16...
Nd7 {[%clk 0:04:37.9]} 17. c3 {[%clk 0:06:01.1]} 17... Ne5 {[%clk 0:04:28.1]}
18. c5 {[%clk 0:05:47.2]} 18... d5 {[%clk 0:04:20.8]} 19. Nxe5+ {[%clk
0:05:39.5]} 19... fxe5 {[%clk 0:04:20.7]} 20. Rf1+ {[%clk 0:05:39.6]} 20... Nf6
{[%clk 0:04:20.8]} 21. Bc2 {[%clk 0:05:40.7]} 21... Bh3 {[%clk 0:03:45.9]} 22.
Re1 {[%clk 0:05:20]} 22... e4 {[%clk 0:03:42.2]} 23. Bb3 {[%clk 0:05:18.5]}
23... Be6 {[%clk 0:02:56.1]} 24. Rf1 {[%clk 0:05:09.5]} 24... Kg7 {[%clk
0:02:45.5]} 25. Rdf2 {[%clk 0:04:57.7]} 25... Rhf8 {[%clk 0:02:36.5]} 26. Kd2
{[%clk 0:04:52.2]} 26... e3+ {[%clk 0:02:31.7]} 27. Kxe3 {[%clk 0:04:48.4]}
27... Ng4+ {[%clk 0:02:31.3]} 28. Ke2 {[%clk 0:04:48.9]} 28... Rxf2+ {[%clk
0:02:29.4]} 29. Rxf2 {[%clk 0:04:50.8]} 29... Nxf2 {[%clk 0:02:30.1]} 30. Kxf2
{[%clk 0:04:52.7]} 30... Rf8+ {[%clk 0:02:29.2]} 31. Ke3 {[%clk 0:04:53.7]}
31... Rf7 {[%clk 0:02:17.7]} 32. Kd4 {[%clk 0:04:54]} 32... Rf2 {[%clk
0:02:04.7]} 33. Bxe7 {[%clk 0:04:50.1]} 33... Kf7 {[%clk 0:01:58.2]} 34. Bd6
{[%clk 0:04:46.3]} 34... Rxh2 {[%clk 0:01:52.5]} 35. Bf4 {[%clk 0:04:47.1]}
35... h5 {[%clk 0:01:44.7]} 36. Ke5 {[%clk 0:04:43.2]} 36... Ke7 {[%clk
0:01:45.1]} 37. Bg5+ {[%clk 0:04:43.2]} 37... Kd7 {[%clk 0:01:45.4]} 38. Bh4
{[%clk 0:04:33.4]} 38... b6 {[%clk 0:01:37.6]} 39. Kd4 {[%clk 0:04:22.5]} 39...
Rd2+ {[%clk 0:01:33.6]} 40. Ke3 {[%clk 0:04:23.5]} 40... Rb2 {[%clk 0:01:28.8]}
41. Kd4 {[%clk 0:04:22.5]} 41... Bf5 {[%clk 0:01:14.3]} 42. c4 {[%clk
0:03:28.4]} 42... Rd2+ {[%clk 0:01:11.5]} 43. Ke3 {[%clk 0:03:21]} 43... Rd3+
{[%clk 0:01:12]} 44. Kf4 {[%clk 0:03:22.3]} 44... Be6 {[%clk 0:01:10.2]} 45.
cxd5 {[%clk 0:03:18.1]} 45... Bxd5 {[%clk 0:01:08.1]} 46. cxb6 {[%clk
0:03:19.1]} 46... axb6 {[%clk 0:01:07.1]} 47. Bc2 {[%clk 0:03:15.2]} 47... Rd4+
{[%clk 0:01:00.3]} 48. Kg5 {[%clk 0:03:08.5]} 48... Bf3 {[%clk 0:00:57.2]} 49.
Kf5 {[%clk 0:03:00.8]} 49... Bg4+ {[%clk 0:00:51.4]} 50. Ke5 {[%clk 0:03:00.5]}
50... Rd5+ {[%clk 0:00:52]} 51. Kf6 {[%clk 0:02:58.2]} 51... c5 {[%clk
0:00:50.1]} 52. Bb3 {[%clk 0:02:55]} 52... Rf5+ {[%clk 0:00:43.1]} 53. Kg6
{[%clk 0:02:55.3]} 53... b5 {[%clk 0:00:42.3]} 54. Bf6 {[%clk 0:02:50.4]} 54...
Rf3 {[%clk 0:00:38]} 55. Be5 {[%clk 0:02:47]} 55... c4 {[%clk 0:00:37.8]} 56.
Bc2 {[%clk 0:02:46.4]} 56... Rf2 {[%clk 0:00:36.6]} 57. Bb1 {[%clk 0:02:46.9]}
57... b4 {[%clk 0:00:33.7]} 58. Bd4 {[%clk 0:02:43.7]} 58... Rg2 {[%clk
0:00:32.6]} 59. Bc5 {[%clk 0:02:35.4]} 59... c3 {[%clk 0:00:29.9]} 60. Be4
{[%clk 0:01:47.8]} 60... c2 {[%clk 0:00:25.7]} 61. Be3 {[%clk 0:01:49.7]} 61...
Re2 {[%clk 0:00:25]} 62. Bxc2 {[%clk 0:01:49.4]} 62... Rxe3 {[%clk 0:00:23.5]}
63. Kg5 {[%clk 0:01:48.6]} 63... Rxg3 {[%clk 0:00:23]} 64. Kh4 {[%clk
0:01:50.5]} 64... Rg2 {[%clk 0:00:23.4]} 65. Kg5 {[%clk 0:01:48.5]} 0-1

[Event "GrandPrix_29.05"]
[Site "Chess.com"]
[Date "2020.05.29"]
[Round "4"]
[White "MirMan90"]
[Black "hubertsmazak"]
[Result "0-1"]
[WhiteElo "2386"]
[BlackElo "2479"]
[TimeControl "600+2"]
[EndTime "11:00:03 PDT"]
[Termination "hubertsmazak won by resignation"]

1. e4 {[%clk 0:10:01.9]} 1... e5 {[%clk 0:09:59.8]} 2. Nf3 {[%clk 0:10:02.7]}
2... Nc6 {[%clk 0:10:00.6]} 3. Bc4 {[%clk 0:10:03.6]} 3... Nf6 {[%clk
0:10:01.4]} 4. d3 {[%clk 0:10:01.8]} 4... Bc5 {[%clk 0:09:59.3]} 5. c3 {[%clk
0:09:53.4]} 5... d6 {[%clk 0:10:00]} 6. a4 {[%clk 0:09:53.1]} 6... a6 {[%clk
0:10:00.6]} 7. O-O {[%clk 0:09:50]} 7... h6 {[%clk 0:10:00.3]} 8. Re1 {[%clk
0:09:40.3]} 8... O-O {[%clk 0:09:54.7]} 9. h3 {[%clk 0:09:34.3]} 9... Re8 {[%clk
0:09:51.2]} 10. Nbd2 {[%clk 0:09:21.1]} 10... Ba7 {[%clk 0:09:51]} 11. Nf1
{[%clk 0:09:17.1]} 11... Be6 {[%clk 0:09:51.1]} 12. Bxe6 {[%clk 0:09:12.8]}
12... Rxe6 {[%clk 0:09:53]} 13. Be3 {[%clk 0:09:13.2]} 13... Qd7 {[%clk
0:09:45.9]} 14. b4 {[%clk 0:09:07.7]} 14... Bxe3 {[%clk 0:08:48.1]} 15. Nxe3
{[%clk 0:09:06.2]} 15... d5 {[%clk 0:08:39.6]} 16. Qc2 {[%clk 0:08:20.1]} 16...
Rd8 {[%clk 0:08:25.1]} 17. b5 {[%clk 0:08:05.6]} 17... axb5 {[%clk 0:07:37.2]}
18. axb5 {[%clk 0:08:05.4]} 18... Ne7 {[%clk 0:07:38.5]} 19. exd5 {[%clk
0:06:41.1]} 19... Nexd5 {[%clk 0:06:47.8]} 20. Nc4 {[%clk 0:06:32.9]} 20... Nf4
{[%clk 0:05:43.1]} 21. Ncxe5 {[%clk 0:06:02.2]} 21... Qxb5 {[%clk 0:05:42.1]}
22. Nd4 {[%clk 0:05:58.5]} 22... Qd5 {[%clk 0:05:28.3]} 23. Ndf3 {[%clk
0:05:08.1]} 23... Nd7 {[%clk 0:04:29]} 24. c4 {[%clk 0:03:34]} 24... Qd6 {[%clk
0:04:15]} 25. d4 {[%clk 0:03:31.9]} 25... Nxe5 {[%clk 0:04:08.1]} 26. dxe5
{[%clk 0:03:33.3]} 26... Qd3 {[%clk 0:03:45.7]} 27. Qxd3 {[%clk 0:03:23.2]}
27... Rxd3 {[%clk 0:03:47.6]} 28. Re3 {[%clk 0:02:29.6]} 28... Rxe3 {[%clk
0:03:38.3]} 29. fxe3 {[%clk 0:02:30.8]} 29... Nd3 {[%clk 0:03:39.8]} 30. Ra7
{[%clk 0:02:06.3]} 30... Nc5 {[%clk 0:03:19]} 31. Kf2 {[%clk 0:01:24.3]} 31...
Ra6 {[%clk 0:03:19.5]} 32. Rxa6 {[%clk 0:01:23.5]} 32... bxa6 {[%clk 0:03:21.4]}
33. Ke2 {[%clk 0:01:15.9]} 33... Kf8 {[%clk 0:02:31.3]} 34. Kd2 {[%clk
0:01:13.7]} 34... Ke7 {[%clk 0:02:32.3]} 35. Nd4 {[%clk 0:01:10.1]} 35... Nd7
{[%clk 0:01:58.6]} 36. Nc6+ {[%clk 0:00:37.4]} 36... Ke6 {[%clk 0:01:59.9]} 37.
Nd8+ {[%clk 0:00:38.4]} 37... Kxe5 {[%clk 0:02:01.5]} 38. Nxf7+ {[%clk
0:00:39.4]} 38... Ke4 {[%clk 0:02:03]} 39. Nd8 {[%clk 0:00:33.8]} 39... Ne5
{[%clk 0:01:49.9]} 40. Kc3 {[%clk 0:00:34.9]} 40... Kxe3 {[%clk 0:01:39.7]} 41.
Ne6 {[%clk 0:00:35.6]} 41... g5 {[%clk 0:01:41.1]} 42. Nxc7 {[%clk 0:00:35.9]}
42... Kf2 {[%clk 0:01:33.8]} 43. c5 {[%clk 0:00:32.5]} 43... Kxg2 {[%clk
0:01:17.4]} 44. Nxa6 {[%clk 0:00:33.1]} 44... Kxh3 {[%clk 0:01:17.6]} 45. Kd4
{[%clk 0:00:33.4]} 45... Nc6+ {[%clk 0:01:09.2]} 46. Kd5 {[%clk 0:00:33.1]}
46... Nd8 {[%clk 0:01:10.5]} 47. Nb4 {[%clk 0:00:25.6]} 47... g4 {[%clk
0:01:09.7]} 48. Nd3 {[%clk 0:00:26]} 48... g3 {[%clk 0:01:08.6]} 49. Kd6 {[%clk
0:00:15.8]} 49... Nb7+ {[%clk 0:01:02.3]} 50. Kc6 {[%clk 0:00:15.4]} 50... Nxc5
{[%clk 0:01:04.2]} 51. Kxc5 {[%clk 0:00:16.1]} 51... g2 {[%clk 0:01:05.7]} 52.
Nf4+ {[%clk 0:00:16.3]} 52... Kg3 {[%clk 0:01:06.5]} 53. Ne2+ {[%clk 0:00:13.6]}
53... Kf2 {[%clk 0:01:06.5]} 54. Nf4 {[%clk 0:00:14.8]} 54... g1=Q {[%clk
0:01:03.9]} 55. Nh3+ {[%clk 0:00:16.2]} 55... Kg2+ {[%clk 0:01:04.9]} 56. Nxg1
{[%clk 0:00:17.7]} 56... Kxg1 {[%clk 0:01:06.8]} 57. Kd4 {[%clk 0:00:19.3]} 0-1

[Event "GrandPrix_29.05"]
[Site "Chess.com"]
[Date "2020.05.29"]
[Round "4"]
[White "cassoulet"]
[Black "WoodlandMagic"]
[Result "1-0"]
[WhiteElo "2030"]
[BlackElo "2057"]
[TimeControl "600+2"]
[EndTime "11:00:04 PDT"]
[Termination "cassoulet won by resignation"]

1. e4 {[%clk 0:10:01.9]} 1... e5 {[%clk 0:09:58.7]} 2. Nf3 {[%clk 0:10:02.8]}
2... Nc6 {[%clk 0:09:59.1]} 3. Bb5 {[%clk 0:10:04.4]} 3... a6 {[%clk 0:09:59.5]}
4. Ba4 {[%clk 0:10:04.9]} 4... Nf6 {[%clk 0:09:56.1]} 5. O-O {[%clk 0:10:05.4]}
5... b5 {[%clk 0:09:56.5]} 6. Bb3 {[%clk 0:10:06.6]} 6... Bc5 {[%clk 0:09:57.7]}
7. Qe2 {[%clk 0:10:07.8]} 7... d6 {[%clk 0:09:50.5]} 8. a4 {[%clk 0:10:07.8]}
8... Rb8 {[%clk 0:09:49.9]} 9. axb5 {[%clk 0:10:08.2]} 9... axb5 {[%clk
0:09:49.9]} 10. d3 {[%clk 0:10:09.5]} 10... h6 {[%clk 0:09:48.8]} 11. Nc3 {[%clk
0:10:05.9]} 11... O-O {[%clk 0:09:43.8]} 12. h3 {[%clk 0:10:06.5]} 12... Ne7
{[%clk 0:08:36.5]} 13. Be3 {[%clk 0:10:03.8]} 13... Bxe3 {[%clk 0:08:35]} 14.
fxe3 {[%clk 0:09:56.6]} 14... Ng6 {[%clk 0:08:34.7]} 15. Qf2 {[%clk 0:09:44.3]}
15... c6 {[%clk 0:08:29.8]} 16. Nh4 {[%clk 0:09:35.3]} 16... Nxh4 {[%clk
0:08:29.3]} 17. Qxh4 {[%clk 0:09:35.4]} 17... Be6 {[%clk 0:08:30.4]} 18. Bxe6
{[%clk 0:09:17.9]} 18... fxe6 {[%clk 0:08:29.2]} 19. d4 {[%clk 0:09:14.9]} 19...
exd4 {[%clk 0:07:50.5]} 20. exd4 {[%clk 0:09:16.8]} 20... Qb6 {[%clk 0:07:51.4]}
21. Ne2 {[%clk 0:09:17.6]} 21... e5 {[%clk 0:07:34.9]} 22. c3 {[%clk 0:09:17.8]}
22... Rbe8 {[%clk 0:07:25.6]} 23. Kh1 {[%clk 0:09:07.1]} 23... b4 {[%clk
0:06:47.7]} 24. dxe5 {[%clk 0:08:40]} 24... Rxe5 {[%clk 0:06:34.1]} 25. Ng3
{[%clk 0:08:34.6]} 25... bxc3 {[%clk 0:06:29.5]} 26. bxc3 {[%clk 0:08:36.5]}
26... Qd8 {[%clk 0:04:38.3]} 27. Ra7 {[%clk 0:08:04.5]} 27... Re7 {[%clk
0:03:57.4]} 28. Ra4 {[%clk 0:07:12.1]} 28... Qe8 {[%clk 0:03:17.8]} 29. Nf5
{[%clk 0:06:47]} 29... Rxe4 {[%clk 0:02:30]} 30. Rxe4 {[%clk 0:06:40.9]} 30...
Nxe4 {[%clk 0:02:27.6]} 31. Ne7+ {[%clk 0:06:27.6]} 31... Qxe7 {[%clk 0:02:21]}
32. Qxe7 {[%clk 0:06:28.2]} 32... Rxf1+ {[%clk 0:02:21.6]} 33. Kh2 {[%clk
0:06:29]} 33... d5 {[%clk 0:01:38.2]} 34. Qe8+ {[%clk 0:06:25.9]} 34... Rf8
{[%clk 0:01:36.3]} 35. Qxc6 {[%clk 0:06:27.1]} 35... Nf6 {[%clk 0:01:36.9]} 36.
Qe6+ {[%clk 0:06:26]} 36... Kh7 {[%clk 0:01:32.1]} 37. g4 {[%clk 0:06:08.9]}
37... Re8 {[%clk 0:01:29.7]} 38. Qf5+ {[%clk 0:06:06.6]} 38... Kg8 {[%clk
0:01:29.3]} 39. h4 {[%clk 0:05:56.5]} 39... Re2+ {[%clk 0:01:14.7]} 40. Kg1
{[%clk 0:05:53.2]} 40... Re1+ {[%clk 0:01:15.6]} 41. Kf2 {[%clk 0:05:46.8]}
41... Re5 {[%clk 0:01:14.1]} 42. Qc8+ {[%clk 0:05:40]} 42... Kf7 {[%clk
0:00:59.6]} 43. Kf3 {[%clk 0:05:26.8]} 43... g5 {[%clk 0:00:59.2]} 44. Qh8
{[%clk 0:04:55.8]} 44... h5 {[%clk 0:00:35.4]} 45. gxh5 {[%clk 0:04:30.4]} 45...
g4+ {[%clk 0:00:36.3]} 46. Kg3 {[%clk 0:04:19.9]} 46... Rxh5 {[%clk 0:00:23.1]}
47. Qa8 {[%clk 0:04:13]} 47... Rf5 {[%clk 0:00:23.4]} 48. Qb7+ {[%clk 0:04:06]}
48... Kg6 {[%clk 0:00:23.9]} 49. Qc8 {[%clk 0:03:42.3]} 49... Rf3+ {[%clk
0:00:20.8]} 50. Kg2 {[%clk 0:03:43.5]} 50... Rh3 {[%clk 0:00:21.7]} 51. Qh8
{[%clk 0:03:39.2]} 51... Rf3 {[%clk 0:00:17.9]} 52. Kg1 {[%clk 0:03:23.4]} 52...
Rf5 {[%clk 0:00:15.6]} 53. Qb8 {[%clk 0:03:11.6]} 53... Rh5 {[%clk 0:00:12.1]}
54. Qg3 {[%clk 0:03:10.7]} 54... Rf5 {[%clk 0:00:12.9]} 55. Qd3 {[%clk
0:03:06.8]} 55... Ne4 {[%clk 0:00:04.1]} 56. c4 {[%clk 0:02:58.6]} 56... Kf6
{[%clk 0:00:03.6]} 57. cxd5 {[%clk 0:02:55.4]} 57... Nd6 {[%clk 0:00:04.7]} 58.
Qd4+ {[%clk 0:02:55]} 58... Re5 {[%clk 0:00:03.9]} 59. h5 {[%clk 0:02:24.8]}
59... Kf5 {[%clk 0:00:03.2]} 60. h6 {[%clk 0:02:21]} 60... Re7 {[%clk
0:00:04.2]} 61. Qb4 {[%clk 0:01:57.4]} 61... Ke5 {[%clk 0:00:03.5]} 62. Qe1+
{[%clk 0:01:51.6]} 62... Kf6 {[%clk 0:00:04]} 63. Qh4+ {[%clk 0:01:52]} 63...
Kf7 {[%clk 0:00:02.1]} 64. h7 {[%clk 0:01:50]} 1-0